Workbook

Sheet Cover
A3: Navigator
C5: =Client_Name -> SumProduct Pty Limited
C6: =Model_Name -> SP Horizontal RainCloud Chart - Complete.xlsm
C14: Primary Developer: Sam Ngo
C16: General Cover Notes:
C17: Example of a Horizontal Raincloud Chart.
C21: Any queries, please e-mail: | G21: Sam.Ngo@sumproduct.com
C22: Website: | G22: www.sumproduct.com

Sheet Navigator
A1: Navigator
A2: =Model_Name -> SP Horizontal RainCloud Chart - Complete.xlsm
A3: Navigator
E4: Error Checks: | G4: =Overall_Error_Check -> 0
B7: 1 | C7: Table of Contents
F9: Cover
F10: Style Guide
F11: Model Parameters
F12: Horizontal Raincloud - 1 Cloud
F13: Horizontal Raincloud - 3 Clouds
F14: Error Checks

Sheet Style Guide
A1: =IF(ISERROR(RIGHT(CELL("filename",A1),LEN(CELL("filename",A1))-FIND("]",CELL("filename",A1)))), "", RIGHT(CELL("filename",A1),LEN(CELL("filename",A1))-FIND("]",CELL("filename",A1)))) -> Style Guide
A2: =Model_Name -> SP Horizontal RainCloud Chart - Complete.xlsm
A3: Navigator
E4: Error Checks: | I4: =Overall_Error_Check -> 0
B6: =MAX($B$5:$B5)+1 -> 1 | C6: Formatting of Headers / Dividers
C8: Description | I8: Display | K8: Style Name
C10: Sheet Title | I10: =C10 -> Sheet Title | K10: Sheet Title
C11: Model Name | I11: =C11 -> Model Name | K11: Model Name
C13: Header 1 | I13: =C13 -> Header 1 | K13: Header 1
C14: Header 2 | I14: =C14 -> Header 2 | K14: Header 2
C15: Header 3 | I15: =C15 -> Header 3 | K15: Header 3
C16: Header 4 | I16: =C16 -> Header 4 | K16: Header 4
C18: Notes | I18: =C18 -> Notes | K18: Notes
C20: Table Heading | I20: =C20 -> Table Heading | K20: Table Heading
B23: =MAX($B$5:$B22)+1 -> 2 | C23: Individual Cell Styles
C25: Description | I25: Display | K25: Style Name
C27: Assumption | I27: Assumption | K27: =C27 -> Assumption
C29: Constraint | I29: =C29 -> Constraint | K29: =C29 -> Constraint
C31: Empty | K31: =C31 -> Empty
C33: Error Check | I33: 0 | K33: =C33 -> Error Check
C35: Hyperlink | I35: Hyperlink | K35: =C35 -> Hyperlink
C37: Internal Reference | I37: ='Error Checks'!E12 -> Example | K37: =C37 -> Internal Reference
C39: Line Calculation | I39: 77 | K39: Line Calc
C41: Line Total | I41: =I39 -> 77 | K41: =C41 -> Line Total
C43: Parameter | I43: 365 | K43: =C43 -> Parameter
C45: Range Name Description | I45: Not_Named | K45: =C45 -> Range Name Description
C47: Row Reference | I47: =ROW(C47) -> 47 | K47: Row Ref
C49: Row Summary | I49: =I41 -> 77 | K49: =C49 -> Row Summary
C51: Units | I51: A$ | K51: =C51 -> Units
C53: WIP | K53: =C53 -> WIP
B56: =MAX($B$5:$B55)+1 -> 3 | C56: Numerical Styles
C58: Description | I58: Display | K58: Style Name
C60: Comma | I60: 123456.789 | K60: =C60 -> Comma
C62: Comma [0] | I62: -123456.789 | K62: Comma [0]
C64: Currency | I64: 123456.789 | K64: Currency
C66: Currency [0] | I66: 123456.789 | K66: Currency [0]
C68: Date | I68: =TODAY() -> 2023-10-26 | K68: =C68 -> Date
C70: Date Heading | I70: =TODAY() -> 2023-10-26 | K70: =C70 -> Date Heading
C72: Numbers 0 | I72: -123456.789 | K72: =C72 -> Numbers 0
C74: Percent | I74: 0.5 | K74: =C74 -> Percent

Sheet Model Parameters
A1: =IF(ISERROR(RIGHT(CELL("filename",A1),LEN(CELL("filename",A1))-FIND("]",CELL("filename",A1)))), "", RIGHT(CELL("filename",A1),LEN(CELL("filename",A1))-FIND("]",CELL("filename",A1)))) -> Model Parameters
A2: =Model_Name -> SP Horizontal RainCloud Chart - Complete.xlsm
A3: Navigator
E4: Error Checks: | I4: =Overall_Error_Check -> 0
B6: =MAX($B$5:$B5)+1 -> 1 | C6: General
C8: Key Inputs
E10: General
E11: Model Name | G11: =IF(ISERROR(OR(FIND("[",CELL("filename",A1)),FIND("]",CELL("filename",A1)))),"",MID(CELL("filename",A1),FIND("[",CELL("filename",A1))+1,FIND("]",CELL("filename",A1))-FIND("[",CELL("filename",A1))-1)) -> SP Horizontal RainCloud Chart - Complete.xlsm
E12: Client Name | G12: SumProduct Pty Limited
B15: =MAX($B$5:$B14)+1 -> 2 | C15: General Range Names
C17: Technical Assumptions
E19: Days in Year | G19: 365
E20: Months in Month | G20: 1
E21: Months in Quarter | G21: 3
E22: Months in Half Yr | G22: 6
E23: Months in Year | G23: 12
E24: Quarters in Year | G24: 4
E26: Rounding Accuracy | G26: 5
E28: Very Large Number | G28: 1e+99
E29: Very Small Number | G29: 1e-08
E31: Thousand | G31: 1000

Sheet Horizontal Raincloud - 1 Cloud
A1: =IF(ISERROR(RIGHT(CELL("filename",A1),LEN(CELL("filename",A1))-FIND("]",CELL("filename",A1)))), "", RIGHT(CELL("filename",A1),LEN(CELL("filename",A1))-FIND("]",CELL("filename",A1)))) -> Horizontal Raincloud - 1 Cloud
A2: =Model_Name -> SP Horizontal RainCloud Chart - Complete.xlsm
A3: Navigator
B4: Error Checks: | G4: =Overall_Error_Check -> 0
B6: =MAX($B$5:$B5)+1 -> 1 | C6: Vertical Raincloud Chart
D9: Cloud 1 | E9: Cloud 1 Sorted | F9: Cloud 1: 1st position | G9: Cloud 1: X-position | I9: Location | J9: 1.5
D10: 27 | E10: =SMALL(Cloud[Cloud 1],COUNTA(Cloud[[#Headers],[Cloud 1]]:Cloud[[#This Row],[Cloud 1]])-1) -> 1 | F10: =COUNTIF(Cloud[[#Headers],[Cloud 1 Sorted]]:Cloud[[#This Row],[Cloud 1 Sorted]],Cloud[[#This Row],[Cloud 1 Sorted]]) -> 1 | G10: =IF(Cloud[[#This Row],[Cloud 1: 1st position]]=1,J$9,G9+J$10) -> 1.5 | I10: Length | J10: -0.5
D11: 18 | E11: =SMALL(Cloud[Cloud 1],COUNTA(Cloud[[#Headers],[Cloud 1]]:Cloud[[#This Row],[Cloud 1]])-1) -> 8 | F11: =COUNTIF(Cloud[[#Headers],[Cloud 1 Sorted]]:Cloud[[#This Row],[Cloud 1 Sorted]],Cloud[[#This Row],[Cloud 1 Sorted]]) -> 1 | G11: =IF(Cloud[[#This Row],[Cloud 1: 1st position]]=1,J$9,G10+J$10) -> 1.5
D12: 95 | E12: =SMALL(Cloud[Cloud 1],COUNTA(Cloud[[#Headers],[Cloud 1]]:Cloud[[#This Row],[Cloud 1]])-1) -> 8 | F12: =COUNTIF(Cloud[[#Headers],[Cloud 1 Sorted]]:Cloud[[#This Row],[Cloud 1 Sorted]],Cloud[[#This Row],[Cloud 1 Sorted]]) -> 2 | G12: =IF(Cloud[[#This Row],[Cloud 1: 1st position]]=1,J$9,G11+J$10) -> 1 | I12: Percentile | J12: Percentile: Cloud 1
D13: 90 | E13: =SMALL(Cloud[Cloud 1],COUNTA(Cloud[[#Headers],[Cloud 1]]:Cloud[[#This Row],[Cloud 1]])-1) -> 9 | F13: =COUNTIF(Cloud[[#Headers],[Cloud 1 Sorted]]:Cloud[[#This Row],[Cloud 1 Sorted]],Cloud[[#This Row],[Cloud 1 Sorted]]) -> 1 | G13: =IF(Cloud[[#This Row],[Cloud 1: 1st position]]=1,J$9,G12+J$10) -> 1.5 | I13: 0 | J13: =PERCENTILE('Horizontal Raincloud - 1 Cloud'!$D$10:$D$69,$I13) -> 1
D14: 53 | E14: =SMALL(Cloud[Cloud 1],COUNTA(Cloud[[#Headers],[Cloud 1]]:Cloud[[#This Row],[Cloud 1]])-1) -> 10 | F14: =COUNTIF(Cloud[[#Headers],[Cloud 1 Sorted]]:Cloud[[#This Row],[Cloud 1 Sorted]],Cloud[[#This Row],[Cloud 1 Sorted]]) -> 1 | G14: =IF(Cloud[[#This Row],[Cloud 1: 1st position]]=1,J$9,G13+J$10) -> 1.5 | I14: 0.1 | J14: =PERCENTILE('Horizontal Raincloud - 1 Cloud'!$D$10:$D$69,$I14) -> 11.9
D15: 17 | E15: =SMALL(Cloud[Cloud 1],COUNTA(Cloud[[#Headers],[Cloud 1]]:Cloud[[#This Row],[Cloud 1]])-1) -> 11 | F15: =COUNTIF(Cloud[[#Headers],[Cloud 1 Sorted]]:Cloud[[#This Row],[Cloud 1 Sorted]],Cloud[[#This Row],[Cloud 1 Sorted]]) -> 1 | G15: =IF(Cloud[[#This Row],[Cloud 1: 1st position]]=1,J$9,G14+J$10) -> 1.5 | I15: 0.25 | J15: =PERCENTILE('Horizontal Raincloud - 1 Cloud'!$D$10:$D$69,$I15) -> 20.5
D16: 92 | E16: =SMALL(Cloud[Cloud 1],COUNTA(Cloud[[#Headers],[Cloud 1]]:Cloud[[#This Row],[Cloud 1]])-1) -> 12 | F16: =COUNTIF(Cloud[[#Headers],[Cloud 1 Sorted]]:Cloud[[#This Row],[Cloud 1 Sorted]],Cloud[[#This Row],[Cloud 1 Sorted]]) -> 1 | G16: =IF(Cloud[[#This Row],[Cloud 1: 1st position]]=1,J$9,G15+J$10) -> 1.5 | I16: 0.5 | J16: =PERCENTILE('Horizontal Raincloud - 1 Cloud'!$D$10:$D$69,$I16) -> 43.5
D17: 93 | E17: =SMALL(Cloud[Cloud 1],COUNTA(Cloud[[#Headers],[Cloud 1]]:Cloud[[#This Row],[Cloud 1]])-1) -> 12 | F17: =COUNTIF(Cloud[[#Headers],[Cloud 1 Sorted]]:Cloud[[#This Row],[Cloud 1 Sorted]],Cloud[[#This Row],[Cloud 1 Sorted]]) -> 2 | G17: =IF(Cloud[[#This Row],[Cloud 1: 1st position]]=1,J$9,G16+J$10) -> 1 | I17: 0.75 | J17: =PERCENTILE('Horizontal Raincloud - 1 Cloud'!$D$10:$D$69,$I17) -> 64.75
D18: 18 | E18: =SMALL(Cloud[Cloud 1],COUNTA(Cloud[[#Headers],[Cloud 1]]:Cloud[[#This Row],[Cloud 1]])-1) -> 12 | F18: =COUNTIF(Cloud[[#Headers],[Cloud 1 Sorted]]:Cloud[[#This Row],[Cloud 1 Sorted]],Cloud[[#This Row],[Cloud 1 Sorted]]) -> 3 | G18: =IF(Cloud[[#This Row],[Cloud 1: 1st position]]=1,J$9,G17+J$10) -> 0.5 | I18: 0.9 | J18: =PERCENTILE('Horizontal Raincloud - 1 Cloud'!$D$10:$D$69,$I18) -> 90
D19: 15 | E19: =SMALL(Cloud[Cloud 1],COUNTA(Cloud[[#Headers],[Cloud 1]]:Cloud[[#This Row],[Cloud 1]])-1) -> 13 | F19: =COUNTIF(Cloud[[#Headers],[Cloud 1 Sorted]]:Cloud[[#This Row],[Cloud 1 Sorted]],Cloud[[#This Row],[Cloud 1 Sorted]]) -> 1 | G19: =IF(Cloud[[#This Row],[Cloud 1: 1st position]]=1,J$9,G18+J$10) -> 1.5 | I19: 1 | J19: =PERCENTILE('Horizontal Raincloud - 1 Cloud'!$D$10:$D$69,$I19) -> 99
D20: 31 | E20: =SMALL(Cloud[Cloud 1],COUNTA(Cloud[[#Headers],[Cloud 1]]:Cloud[[#This Row],[Cloud 1]])-1) -> 15 | F20: =COUNTIF(Cloud[[#Headers],[Cloud 1 Sorted]]:Cloud[[#This Row],[Cloud 1 Sorted]],Cloud[[#This Row],[Cloud 1 Sorted]]) -> 1 | G20: =IF(Cloud[[#This Row],[Cloud 1: 1st position]]=1,J$9,G19+J$10) -> 1.5
D21: 9 | E21: =SMALL(Cloud[Cloud 1],COUNTA(Cloud[[#Headers],[Cloud 1]]:Cloud[[#This Row],[Cloud 1]])-1) -> 17 | F21: =COUNTIF(Cloud[[#Headers],[Cloud 1 Sorted]]:Cloud[[#This Row],[Cloud 1 Sorted]],Cloud[[#This Row],[Cloud 1 Sorted]]) -> 1 | G21: =IF(Cloud[[#This Row],[Cloud 1: 1st position]]=1,J$9,G20+J$10) -> 1.5 | I21: Stacked Bar | L21: Stacked: Cloud 1
D22: 27 | E22: =SMALL(Cloud[Cloud 1],COUNTA(Cloud[[#Headers],[Cloud 1]]:Cloud[[#This Row],[Cloud 1]])-1) -> 18 | F22: =COUNTIF(Cloud[[#Headers],[Cloud 1 Sorted]]:Cloud[[#This Row],[Cloud 1 Sorted]],Cloud[[#This Row],[Cloud 1 Sorted]]) -> 1 | G22: =IF(Cloud[[#This Row],[Cloud 1: 1st position]]=1,J$9,G21+J$10) -> 1.5 | I22: Base 25th | L22: =J15 -> 20.5
D23: 29 | E23: =SMALL(Cloud[Cloud 1],COUNTA(Cloud[[#Headers],[Cloud 1]]:Cloud[[#This Row],[Cloud 1]])-1) -> 18 | F23: =COUNTIF(Cloud[[#Headers],[Cloud 1 Sorted]]:Cloud[[#This Row],[Cloud 1 Sorted]],Cloud[[#This Row],[Cloud 1 Sorted]]) -> 2 | G23: =IF(Cloud[[#This Row],[Cloud 1: 1st position]]=1,J$9,G22+J$10) -> 1 | I23: Bottom 25-50 | L23: =J16-J15 -> 23
D24: 70 | E24: =SMALL(Cloud[Cloud 1],COUNTA(Cloud[[#Headers],[Cloud 1]]:Cloud[[#This Row],[Cloud 1]])-1) -> 19 | F24: =COUNTIF(Cloud[[#Headers],[Cloud 1 Sorted]]:Cloud[[#This Row],[Cloud 1 Sorted]],Cloud[[#This Row],[Cloud 1 Sorted]]) -> 1 | G24: =IF(Cloud[[#This Row],[Cloud 1: 1st position]]=1,J$9,G23+J$10) -> 1.5 | I24: Top 50-75 | L24: =J17-J16 -> 21.25
D25: 12 | E25: =SMALL(Cloud[Cloud 1],COUNTA(Cloud[[#Headers],[Cloud 1]]:Cloud[[#This Row],[Cloud 1]])-1) -> 21 | F25: =COUNTIF(Cloud[[#Headers],[Cloud 1 Sorted]]:Cloud[[#This Row],[Cloud 1 Sorted]],Cloud[[#This Row],[Cloud 1 Sorted]]) -> 1 | G25: =IF(Cloud[[#This Row],[Cloud 1: 1st position]]=1,J$9,G24+J$10) -> 1.5
D26: 43 | E26: =SMALL(Cloud[Cloud 1],COUNTA(Cloud[[#Headers],[Cloud 1]]:Cloud[[#This Row],[Cloud 1]])-1) -> 27 | F26: =COUNTIF(Cloud[[#Headers],[Cloud 1 Sorted]]:Cloud[[#This Row],[Cloud 1 Sorted]],Cloud[[#This Row],[Cloud 1 Sorted]]) -> 1 | G26: =IF(Cloud[[#This Row],[Cloud 1: 1st position]]=1,J$9,G25+J$10) -> 1.5 | I26: x | J26: y
D27: 39 | E27: =SMALL(Cloud[Cloud 1],COUNTA(Cloud[[#Headers],[Cloud 1]]:Cloud[[#This Row],[Cloud 1]])-1) -> 27 | F27: =COUNTIF(Cloud[[#Headers],[Cloud 1 Sorted]]:Cloud[[#This Row],[Cloud 1 Sorted]],Cloud[[#This Row],[Cloud 1 Sorted]]) -> 2 | G27: =IF(Cloud[[#This Row],[Cloud 1: 1st position]]=1,J$9,G26+J$10) -> 1 | I27: =J16 -> 43.5 | J27: 2.5
D28: 53 | E28: =SMALL(Cloud[Cloud 1],COUNTA(Cloud[[#Headers],[Cloud 1]]:Cloud[[#This Row],[Cloud 1]])-1) -> 28 | F28: =COUNTIF(Cloud[[#Headers],[Cloud 1 Sorted]]:Cloud[[#This Row],[Cloud 1 Sorted]],Cloud[[#This Row],[Cloud 1 Sorted]]) -> 1 | G28: =IF(Cloud[[#This Row],[Cloud 1: 1st position]]=1,J$9,G27+J$10) -> 1.5
D29: 68 | E29: =SMALL(Cloud[Cloud 1],COUNTA(Cloud[[#Headers],[Cloud 1]]:Cloud[[#This Row],[Cloud 1]])-1) -> 28 | F29: =COUNTIF(Cloud[[#Headers],[Cloud 1 Sorted]]:Cloud[[#This Row],[Cloud 1 Sorted]],Cloud[[#This Row],[Cloud 1 Sorted]]) -> 2 | G29: =IF(Cloud[[#This Row],[Cloud 1: 1st position]]=1,J$9,G28+J$10) -> 1 | I29: Error Bar Length
D30: 60 | E30: =SMALL(Cloud[Cloud 1],COUNTA(Cloud[[#Headers],[Cloud 1]]:Cloud[[#This Row],[Cloud 1]])-1) -> 29 | F30: =COUNTIF(Cloud[[#Headers],[Cloud 1 Sorted]]:Cloud[[#This Row],[Cloud 1 Sorted]],Cloud[[#This Row],[Cloud 1 Sorted]]) -> 1 | G30: =IF(Cloud[[#This Row],[Cloud 1: 1st position]]=1,J$9,G29+J$10) -> 1.5 | I30: Positive | J30: =-J16+J18 -> 46.5
D31: 8 | E31: =SMALL(Cloud[Cloud 1],COUNTA(Cloud[[#Headers],[Cloud 1]]:Cloud[[#This Row],[Cloud 1]])-1) -> 29 | F31: =COUNTIF(Cloud[[#Headers],[Cloud 1 Sorted]]:Cloud[[#This Row],[Cloud 1 Sorted]],Cloud[[#This Row],[Cloud 1 Sorted]]) -> 2 | G31: =IF(Cloud[[#This Row],[Cloud 1: 1st position]]=1,J$9,G30+J$10) -> 1 | I31: Negative | J31: =J16-J14 -> 31.6
D32: 8 | E32: =SMALL(Cloud[Cloud 1],COUNTA(Cloud[[#Headers],[Cloud 1]]:Cloud[[#This Row],[Cloud 1]])-1) -> 31 | F32: =COUNTIF(Cloud[[#Headers],[Cloud 1 Sorted]]:Cloud[[#This Row],[Cloud 1 Sorted]],Cloud[[#This Row],[Cloud 1 Sorted]]) -> 1 | G32: =IF(Cloud[[#This Row],[Cloud 1: 1st position]]=1,J$9,G31+J$10) -> 1.5
D33: 31 | E33: =SMALL(Cloud[Cloud 1],COUNTA(Cloud[[#Headers],[Cloud 1]]:Cloud[[#This Row],[Cloud 1]])-1) -> 31 | F33: =COUNTIF(Cloud[[#Headers],[Cloud 1 Sorted]]:Cloud[[#This Row],[Cloud 1 Sorted]],Cloud[[#This Row],[Cloud 1 Sorted]]) -> 2 | G33: =IF(Cloud[[#This Row],[Cloud 1: 1st position]]=1,J$9,G32+J$10) -> 1
D34: 19 | E34: =SMALL(Cloud[Cloud 1],COUNTA(Cloud[[#Headers],[Cloud 1]]:Cloud[[#This Row],[Cloud 1]])-1) -> 31 | F34: =COUNTIF(Cloud[[#Headers],[Cloud 1 Sorted]]:Cloud[[#This Row],[Cloud 1 Sorted]],Cloud[[#This Row],[Cloud 1 Sorted]]) -> 3 | G34: =IF(Cloud[[#This Row],[Cloud 1: 1st position]]=1,J$9,G33+J$10) -> 0.5
D35: 56 | E35: =SMALL(Cloud[Cloud 1],COUNTA(Cloud[[#Headers],[Cloud 1]]:Cloud[[#This Row],[Cloud 1]])-1) -> 33 | F35: =COUNTIF(Cloud[[#Headers],[Cloud 1 Sorted]]:Cloud[[#This Row],[Cloud 1 Sorted]],Cloud[[#This Row],[Cloud 1 Sorted]]) -> 1 | G35: =IF(Cloud[[#This Row],[Cloud 1: 1st position]]=1,J$9,G34+J$10) -> 1.5
D36: 67 | E36: =SMALL(Cloud[Cloud 1],COUNTA(Cloud[[#Headers],[Cloud 1]]:Cloud[[#This Row],[Cloud 1]])-1) -> 34 | F36: =COUNTIF(Cloud[[#Headers],[Cloud 1 Sorted]]:Cloud[[#This Row],[Cloud 1 Sorted]],Cloud[[#This Row],[Cloud 1 Sorted]]) -> 1 | G36: =IF(Cloud[[#This Row],[Cloud 1: 1st position]]=1,J$9,G35+J$10) -> 1.5
D37: 90 | E37: =SMALL(Cloud[Cloud 1],COUNTA(Cloud[[#Headers],[Cloud 1]]:Cloud[[#This Row],[Cloud 1]])-1) -> 38 | F37: =COUNTIF(Cloud[[#Headers],[Cloud 1 Sorted]]:Cloud[[#This Row],[Cloud 1 Sorted]],Cloud[[#This Row],[Cloud 1 Sorted]]) -> 1 | G37: =IF(Cloud[[#This Row],[Cloud 1: 1st position]]=1,J$9,G36+J$10) -> 1.5
D38: 28 | E38: =SMALL(Cloud[Cloud 1],COUNTA(Cloud[[#Headers],[Cloud 1]]:Cloud[[#This Row],[Cloud 1]])-1) -> 39 | F38: =COUNTIF(Cloud[[#Headers],[Cloud 1 Sorted]]:Cloud[[#This Row],[Cloud 1 Sorted]],Cloud[[#This Row],[Cloud 1 Sorted]]) -> 1 | G38: =IF(Cloud[[#This Row],[Cloud 1: 1st position]]=1,J$9,G37+J$10) -> 1.5
D39: 11 | E39: =SMALL(Cloud[Cloud 1],COUNTA(Cloud[[#Headers],[Cloud 1]]:Cloud[[#This Row],[Cloud 1]])-1) -> 43 | F39: =COUNTIF(Cloud[[#Headers],[Cloud 1 Sorted]]:Cloud[[#This Row],[Cloud 1 Sorted]],Cloud[[#This Row],[Cloud 1 Sorted]]) -> 1 | G39: =IF(Cloud[[#This Row],[Cloud 1: 1st position]]=1,J$9,G38+J$10) -> 1.5
D40: 62 | E40: =SMALL(Cloud[Cloud 1],COUNTA(Cloud[[#Headers],[Cloud 1]]:Cloud[[#This Row],[Cloud 1]])-1) -> 44 | F40: =COUNTIF(Cloud[[#Headers],[Cloud 1 Sorted]]:Cloud[[#This Row],[Cloud 1 Sorted]],Cloud[[#This Row],[Cloud 1 Sorted]]) -> 1 | G40: =IF(Cloud[[#This Row],[Cloud 1: 1st position]]=1,J$9,G39+J$10) -> 1.5
D41: 50 | E41: =SMALL(Cloud[Cloud 1],COUNTA(Cloud[[#Headers],[Cloud 1]]:Cloud[[#This Row],[Cloud 1]])-1) -> 48 | F41: =COUNTIF(Cloud[[#Headers],[Cloud 1 Sorted]]:Cloud[[#This Row],[Cloud 1 Sorted]],Cloud[[#This Row],[Cloud 1 Sorted]]) -> 1 | G41: =IF(Cloud[[#This Row],[Cloud 1: 1st position]]=1,J$9,G40+J$10) -> 1.5
D42: 48 | E42: =SMALL(Cloud[Cloud 1],COUNTA(Cloud[[#Headers],[Cloud 1]]:Cloud[[#This Row],[Cloud 1]])-1) -> 48 | F42: =COUNTIF(Cloud[[#Headers],[Cloud 1 Sorted]]:Cloud[[#This Row],[Cloud 1 Sorted]],Cloud[[#This Row],[Cloud 1 Sorted]]) -> 2 | G42: =IF(Cloud[[#This Row],[Cloud 1: 1st position]]=1,J$9,G41+J$10) -> 1
D43: 21 | E43: =SMALL(Cloud[Cloud 1],COUNTA(Cloud[[#Headers],[Cloud 1]]:Cloud[[#This Row],[Cloud 1]])-1) -> 50 | F43: =COUNTIF(Cloud[[#Headers],[Cloud 1 Sorted]]:Cloud[[#This Row],[Cloud 1 Sorted]],Cloud[[#This Row],[Cloud 1 Sorted]]) -> 1 | G43: =IF(Cloud[[#This Row],[Cloud 1: 1st position]]=1,J$9,G42+J$10) -> 1.5
D44: 51 | E44: =SMALL(Cloud[Cloud 1],COUNTA(Cloud[[#Headers],[Cloud 1]]:Cloud[[#This Row],[Cloud 1]])-1) -> 51 | F44: =COUNTIF(Cloud[[#Headers],[Cloud 1 Sorted]]:Cloud[[#This Row],[Cloud 1 Sorted]],Cloud[[#This Row],[Cloud 1 Sorted]]) -> 1 | G44: =IF(Cloud[[#This Row],[Cloud 1: 1st position]]=1,J$9,G43+J$10) -> 1.5
D45: 33 | E45: =SMALL(Cloud[Cloud 1],COUNTA(Cloud[[#Headers],[Cloud 1]]:Cloud[[#This Row],[Cloud 1]])-1) -> 52 | F45: =COUNTIF(Cloud[[#Headers],[Cloud 1 Sorted]]:Cloud[[#This Row],[Cloud 1 Sorted]],Cloud[[#This Row],[Cloud 1 Sorted]]) -> 1 | G45: =IF(Cloud[[#This Row],[Cloud 1: 1st position]]=1,J$9,G44+J$10) -> 1.5
D46: 13 | E46: =SMALL(Cloud[Cloud 1],COUNTA(Cloud[[#Headers],[Cloud 1]]:Cloud[[#This Row],[Cloud 1]])-1) -> 53 | F46: =COUNTIF(Cloud[[#Headers],[Cloud 1 Sorted]]:Cloud[[#This Row],[Cloud 1 Sorted]],Cloud[[#This Row],[Cloud 1 Sorted]]) -> 1 | G46: =IF(Cloud[[#This Row],[Cloud 1: 1st position]]=1,J$9,G45+J$10) -> 1.5
D47: 63 | E47: =SMALL(Cloud[Cloud 1],COUNTA(Cloud[[#Headers],[Cloud 1]]:Cloud[[#This Row],[Cloud 1]])-1) -> 53 | F47: =COUNTIF(Cloud[[#Headers],[Cloud 1 Sorted]]:Cloud[[#This Row],[Cloud 1 Sorted]],Cloud[[#This Row],[Cloud 1 Sorted]]) -> 2 | G47: =IF(Cloud[[#This Row],[Cloud 1: 1st position]]=1,J$9,G46+J$10) -> 1
D48: 73 | E48: =SMALL(Cloud[Cloud 1],COUNTA(Cloud[[#Headers],[Cloud 1]]:Cloud[[#This Row],[Cloud 1]])-1) -> 56 | F48: =COUNTIF(Cloud[[#Headers],[Cloud 1 Sorted]]:Cloud[[#This Row],[Cloud 1 Sorted]],Cloud[[#This Row],[Cloud 1 Sorted]]) -> 1 | G48: =IF(Cloud[[#This Row],[Cloud 1: 1st position]]=1,J$9,G47+J$10) -> 1.5
D49: 99 | E49: =SMALL(Cloud[Cloud 1],COUNTA(Cloud[[#Headers],[Cloud 1]]:Cloud[[#This Row],[Cloud 1]])-1) -> 56 | F49: =COUNTIF(Cloud[[#Headers],[Cloud 1 Sorted]]:Cloud[[#This Row],[Cloud 1 Sorted]],Cloud[[#This Row],[Cloud 1 Sorted]]) -> 2 | G49: =IF(Cloud[[#This Row],[Cloud 1: 1st position]]=1,J$9,G48+J$10) -> 1
D50: 38 | E50: =SMALL(Cloud[Cloud 1],COUNTA(Cloud[[#Headers],[Cloud 1]]:Cloud[[#This Row],[Cloud 1]])-1) -> 60 | F50: =COUNTIF(Cloud[[#Headers],[Cloud 1 Sorted]]:Cloud[[#This Row],[Cloud 1 Sorted]],Cloud[[#This Row],[Cloud 1 Sorted]]) -> 1 | G50: =IF(Cloud[[#This Row],[Cloud 1: 1st position]]=1,J$9,G49+J$10) -> 1.5
D51: 67 | E51: =SMALL(Cloud[Cloud 1],COUNTA(Cloud[[#Headers],[Cloud 1]]:Cloud[[#This Row],[Cloud 1]])-1) -> 60 | F51: =COUNTIF(Cloud[[#Headers],[Cloud 1 Sorted]]:Cloud[[#This Row],[Cloud 1 Sorted]],Cloud[[#This Row],[Cloud 1 Sorted]]) -> 2 | G51: =IF(Cloud[[#This Row],[Cloud 1: 1st position]]=1,J$9,G50+J$10) -> 1
D52: 1 | E52: =SMALL(Cloud[Cloud 1],COUNTA(Cloud[[#Headers],[Cloud 1]]:Cloud[[#This Row],[Cloud 1]])-1) -> 62 | F52: =COUNTIF(Cloud[[#Headers],[Cloud 1 Sorted]]:Cloud[[#This Row],[Cloud 1 Sorted]],Cloud[[#This Row],[Cloud 1 Sorted]]) -> 1 | G52: =IF(Cloud[[#This Row],[Cloud 1: 1st position]]=1,J$9,G51+J$10) -> 1.5
D53: 68 | E53: =SMALL(Cloud[Cloud 1],COUNTA(Cloud[[#Headers],[Cloud 1]]:Cloud[[#This Row],[Cloud 1]])-1) -> 63 | F53: =COUNTIF(Cloud[[#Headers],[Cloud 1 Sorted]]:Cloud[[#This Row],[Cloud 1 Sorted]],Cloud[[#This Row],[Cloud 1 Sorted]]) -> 1 | G53: =IF(Cloud[[#This Row],[Cloud 1: 1st position]]=1,J$9,G52+J$10) -> 1.5
D54: 12 | E54: =SMALL(Cloud[Cloud 1],COUNTA(Cloud[[#Headers],[Cloud 1]]:Cloud[[#This Row],[Cloud 1]])-1) -> 64 | F54: =COUNTIF(Cloud[[#Headers],[Cloud 1 Sorted]]:Cloud[[#This Row],[Cloud 1 Sorted]],Cloud[[#This Row],[Cloud 1 Sorted]]) -> 1 | G54: =IF(Cloud[[#This Row],[Cloud 1: 1st position]]=1,J$9,G53+J$10) -> 1.5
D55: 10 | E55: =SMALL(Cloud[Cloud 1],COUNTA(Cloud[[#Headers],[Cloud 1]]:Cloud[[#This Row],[Cloud 1]])-1) -> 67 | F55: =COUNTIF(Cloud[[#Headers],[Cloud 1 Sorted]]:Cloud[[#This Row],[Cloud 1 Sorted]],Cloud[[#This Row],[Cloud 1 Sorted]]) -> 1 | G55: =IF(Cloud[[#This Row],[Cloud 1: 1st position]]=1,J$9,G54+J$10) -> 1.5
D56: 92 | E56: =SMALL(Cloud[Cloud 1],COUNTA(Cloud[[#Headers],[Cloud 1]]:Cloud[[#This Row],[Cloud 1]])-1) -> 67 | F56: =COUNTIF(Cloud[[#Headers],[Cloud 1 Sorted]]:Cloud[[#This Row],[Cloud 1 Sorted]],Cloud[[#This Row],[Cloud 1 Sorted]]) -> 2 | G56: =IF(Cloud[[#This Row],[Cloud 1: 1st position]]=1,J$9,G55+J$10) -> 1
D57: 68 | E57: =SMALL(Cloud[Cloud 1],COUNTA(Cloud[[#Headers],[Cloud 1]]:Cloud[[#This Row],[Cloud 1]])-1) -> 68 | F57: =COUNTIF(Cloud[[#Headers],[Cloud 1 Sorted]]:Cloud[[#This Row],[Cloud 1 Sorted]],Cloud[[#This Row],[Cloud 1 Sorted]]) -> 1 | G57: =IF(Cloud[[#This Row],[Cloud 1: 1st position]]=1,J$9,G56+J$10) -> 1.5
D58: 29 | E58: =SMALL(Cloud[Cloud 1],COUNTA(Cloud[[#Headers],[Cloud 1]]:Cloud[[#This Row],[Cloud 1]])-1) -> 68 | F58: =COUNTIF(Cloud[[#Headers],[Cloud 1 Sorted]]:Cloud[[#This Row],[Cloud 1 Sorted]],Cloud[[#This Row],[Cloud 1 Sorted]]) -> 2 | G58: =IF(Cloud[[#This Row],[Cloud 1: 1st position]]=1,J$9,G57+J$10) -> 1
D59: 31 | E59: =SMALL(Cloud[Cloud 1],COUNTA(Cloud[[#Headers],[Cloud 1]]:Cloud[[#This Row],[Cloud 1]])-1) -> 68 | F59: =COUNTIF(Cloud[[#Headers],[Cloud 1 Sorted]]:Cloud[[#This Row],[Cloud 1 Sorted]],Cloud[[#This Row],[Cloud 1 Sorted]]) -> 3 | G59: =IF(Cloud[[#This Row],[Cloud 1: 1st position]]=1,J$9,G58+J$10) -> 0.5
D60: 34 | E60: =SMALL(Cloud[Cloud 1],COUNTA(Cloud[[#Headers],[Cloud 1]]:Cloud[[#This Row],[Cloud 1]])-1) -> 70 | F60: =COUNTIF(Cloud[[#Headers],[Cloud 1 Sorted]]:Cloud[[#This Row],[Cloud 1 Sorted]],Cloud[[#This Row],[Cloud 1 Sorted]]) -> 1 | G60: =IF(Cloud[[#This Row],[Cloud 1: 1st position]]=1,J$9,G59+J$10) -> 1.5
D61: 12 | E61: =SMALL(Cloud[Cloud 1],COUNTA(Cloud[[#Headers],[Cloud 1]]:Cloud[[#This Row],[Cloud 1]])-1) -> 73 | F61: =COUNTIF(Cloud[[#Headers],[Cloud 1 Sorted]]:Cloud[[#This Row],[Cloud 1 Sorted]],Cloud[[#This Row],[Cloud 1 Sorted]]) -> 1 | G61: =IF(Cloud[[#This Row],[Cloud 1: 1st position]]=1,J$9,G60+J$10) -> 1.5
D62: 78 | E62: =SMALL(Cloud[Cloud 1],COUNTA(Cloud[[#Headers],[Cloud 1]]:Cloud[[#This Row],[Cloud 1]])-1) -> 78 | F62: =COUNTIF(Cloud[[#Headers],[Cloud 1 Sorted]]:Cloud[[#This Row],[Cloud 1 Sorted]],Cloud[[#This Row],[Cloud 1 Sorted]]) -> 1 | G62: =IF(Cloud[[#This Row],[Cloud 1: 1st position]]=1,J$9,G61+J$10) -> 1.5
D63: 28 | E63: =SMALL(Cloud[Cloud 1],COUNTA(Cloud[[#Headers],[Cloud 1]]:Cloud[[#This Row],[Cloud 1]])-1) -> 90 | F63: =COUNTIF(Cloud[[#Headers],[Cloud 1 Sorted]]:Cloud[[#This Row],[Cloud 1 Sorted]],Cloud[[#This Row],[Cloud 1 Sorted]]) -> 1 | G63: =IF(Cloud[[#This Row],[Cloud 1: 1st position]]=1,J$9,G62+J$10) -> 1.5
D64: 64 | E64: =SMALL(Cloud[Cloud 1],COUNTA(Cloud[[#Headers],[Cloud 1]]:Cloud[[#This Row],[Cloud 1]])-1) -> 90 | F64: =COUNTIF(Cloud[[#Headers],[Cloud 1 Sorted]]:Cloud[[#This Row],[Cloud 1 Sorted]],Cloud[[#This Row],[Cloud 1 Sorted]]) -> 2 | G64: =IF(Cloud[[#This Row],[Cloud 1: 1st position]]=1,J$9,G63+J$10) -> 1
D65: 60 | E65: =SMALL(Cloud[Cloud 1],COUNTA(Cloud[[#Headers],[Cloud 1]]:Cloud[[#This Row],[Cloud 1]])-1) -> 92 | F65: =COUNTIF(Cloud[[#Headers],[Cloud 1 Sorted]]:Cloud[[#This Row],[Cloud 1 Sorted]],Cloud[[#This Row],[Cloud 1 Sorted]]) -> 1 | G65: =IF(Cloud[[#This Row],[Cloud 1: 1st position]]=1,J$9,G64+J$10) -> 1.5
D66: 56 | E66: =SMALL(Cloud[Cloud 1],COUNTA(Cloud[[#Headers],[Cloud 1]]:Cloud[[#This Row],[Cloud 1]])-1) -> 92 | F66: =COUNTIF(Cloud[[#Headers],[Cloud 1 Sorted]]:Cloud[[#This Row],[Cloud 1 Sorted]],Cloud[[#This Row],[Cloud 1 Sorted]]) -> 2 | G66: =IF(Cloud[[#This Row],[Cloud 1: 1st position]]=1,J$9,G65+J$10) -> 1
D67: 52 | E67: =SMALL(Cloud[Cloud 1],COUNTA(Cloud[[#Headers],[Cloud 1]]:Cloud[[#This Row],[Cloud 1]])-1) -> 93 | F67: =COUNTIF(Cloud[[#Headers],[Cloud 1 Sorted]]:Cloud[[#This Row],[Cloud 1 Sorted]],Cloud[[#This Row],[Cloud 1 Sorted]]) -> 1 | G67: =IF(Cloud[[#This Row],[Cloud 1: 1st position]]=1,J$9,G66+J$10) -> 1.5
D68: 48 | E68: =SMALL(Cloud[Cloud 1],COUNTA(Cloud[[#Headers],[Cloud 1]]:Cloud[[#This Row],[Cloud 1]])-1) -> 95 | F68: =COUNTIF(Cloud[[#Headers],[Cloud 1 Sorted]]:Cloud[[#This Row],[Cloud 1 Sorted]],Cloud[[#This Row],[Cloud 1 Sorted]]) -> 1 | G68: =IF(Cloud[[#This Row],[Cloud 1: 1st position]]=1,J$9,G67+J$10) -> 1.5
D69: 44 | E69: =SMALL(Cloud[Cloud 1],COUNTA(Cloud[[#Headers],[Cloud 1]]:Cloud[[#This Row],[Cloud 1]])-1) -> 99 | F69: =COUNTIF(Cloud[[#Headers],[Cloud 1 Sorted]]:Cloud[[#This Row],[Cloud 1 Sorted]],Cloud[[#This Row],[Cloud 1 Sorted]]) -> 1 | G69: =IF(Cloud[[#This Row],[Cloud 1: 1st position]]=1,J$9,G68+J$10) -> 1.5

Sheet Horizontal Raincloud - 3 Clouds
A1: =IF(ISERROR(RIGHT(CELL("filename",A1),LEN(CELL("filename",A1))-FIND("]",CELL("filename",A1)))), "", RIGHT(CELL("filename",A1),LEN(CELL("filename",A1))-FIND("]",CELL("filename",A1)))) -> Horizontal Raincloud - 3 Clouds
A2: =Model_Name -> SP Horizontal RainCloud Chart - Complete.xlsm
A3: Navigator
B4: Error Checks: | F4: =Overall_Error_Check -> 0
B6: =MAX($B$5:$B5)+1 -> 1 | C6: Vertical Raincloud Chart
D9: Cloud 1 | E9: Cloud 2 | F9: Cloud 3 | G9: Cloud 1 Sorted | H9: Cloud 2 Sorted | I9: Cloud 3 Sorted | J9: Cloud 1: 1st position | K9: Cloud 2: 1st position | L9: Cloud 3: 1st position | M9: Cloud 1: X-position | N9: Cloud 2: X-position | O9: Cloud 3: X-position | Q9: Location | R9: 2 | S9: 3 | T9: 4
D10: 12 | E10: 181 | F10: 204 | G10: =_xlfn._xlws.SORT(Clouds[Cloud 1]) -> 1 | H10: =_xlfn._xlws.SORT(Clouds[Cloud 2]) -> 102 | I10: =_xlfn._xlws.SORT(Clouds[Cloud 3]) -> 204 | J10: =COUNTIF(G$10:G10,G10) -> 1 | K10: =COUNTIF(H$10:H10,H10) -> 1 | L10: =COUNTIF(I$10:I10,I10) -> 1 | M10: =IF(J10=1,R$9,M9+R$10) -> 2 | N10: =IF(K10=1,S$9,N9+S$10) -> 3 | O10: =IF(L10=1,T$9,O9+T$10) -> 4 | Q10: Length | R10: -0.5 | S10: -0.5 | T10: -0.5
D11: 99 | E11: 149 | F11: 206 | G11: 8 | H11: 105 | I11: 206 | J11: =COUNTIF(G$10:G11,G11) -> 1 | K11: =COUNTIF(H$10:H11,H11) -> 1 | L11: =COUNTIF(I$10:I11,I11) -> 1 | M11: 2 | N11: 3 | O11: 4
D12: 52 | E12: 164 | F12: 206 | G12: 8 | H12: 105 | I12: 206 | J12: =COUNTIF(G$10:G12,G12) -> 2 | K12: =COUNTIF(H$10:H12,H12) -> 2 | L12: =COUNTIF(I$10:I12,I12) -> 2 | M12: 1.5 | N12: 2.5 | O12: 3.5 | Q12: Percentile | R12: Percentile: Cloud 1 | S12: Percentile: Cloud 2 | T12: Percentile: Cloud 3
D13: 28 | E13: 182 | F13: 206 | G13: 9 | H13: 106 | I13: 206 | J13: =COUNTIF(G$10:G13,G13) -> 1 | K13: =COUNTIF(H$10:H13,H13) -> 1 | L13: =COUNTIF(I$10:I13,I13) -> 3 | M13: 2 | N13: 3 | O13: 3 | Q13: 0 | R13: =PERCENTILE(Clouds[Cloud 1],$Q13) -> 1 | S13: =PERCENTILE(Clouds[Cloud 2],$Q13) -> 102 | T13: =PERCENTILE(Clouds[Cloud 3],$Q13) -> 204
D14: 38 | E14: 127 | F14: 208 | G14: 10 | H14: 107 | I14: 208 | J14: =COUNTIF(G$10:G14,G14) -> 1 | K14: =COUNTIF(H$10:H14,H14) -> 1 | L14: =COUNTIF(I$10:I14,I14) -> 1 | M14: 2 | N14: 3 | O14: 4 | Q14: 0.1 | R14: =PERCENTILE(Clouds[Cloud 1],$Q14) -> 11.9 | S14: =PERCENTILE(Clouds[Cloud 2],$Q14) -> 112.8 | T14: =PERCENTILE(Clouds[Cloud 3],$Q14) -> 210.8
D15: 50 | E15: 118 | F15: 209 | G15: 11 | H15: 111 | I15: 209 | J15: =COUNTIF(G$10:G15,G15) -> 1 | K15: =COUNTIF(H$10:H15,H15) -> 1 | L15: =COUNTIF(I$10:I15,I15) -> 1 | M15: 2 | N15: 3 | O15: 4 | Q15: 0.25 | R15: =PERCENTILE(Clouds[Cloud 1],$Q15) -> 20.5 | S15: =PERCENTILE(Clouds[Cloud 2],$Q15) -> 123.75 | T15: =PERCENTILE(Clouds[Cloud 3],$Q15) -> 223
D16: 67 | E16: 147 | F16: 211 | G16: 12 | H16: 113 | I16: 211 | J16: =COUNTIF(G$10:G16,G16) -> 1 | K16: =COUNTIF(H$10:H16,H16) -> 1 | L16: =COUNTIF(I$10:I16,I16) -> 1 | M16: 2 | N16: 3 | O16: 4 | Q16: 0.5 | R16: =PERCENTILE(Clouds[Cloud 1],$Q16) -> 43.5 | S16: =PERCENTILE(Clouds[Cloud 2],$Q16) -> 155 | T16: =PERCENTILE(Clouds[Cloud 3],$Q16) -> 250
D17: 48 | E17: 197 | F17: 211 | G17: 12 | H17: 116 | I17: 211 | J17: =COUNTIF(G$10:G17,G17) -> 2 | K17: =COUNTIF(H$10:H17,H17) -> 1 | L17: =COUNTIF(I$10:I17,I17) -> 2 | M17: 1.5 | N17: 3 | O17: 3.5 | Q17: 0.75 | R17: =PERCENTILE(Clouds[Cloud 1],$Q17) -> 64.75 | S17: =PERCENTILE(Clouds[Cloud 2],$Q17) -> 182 | T17: =PERCENTILE(Clouds[Cloud 3],$Q17) -> 272.5
D18: 33 | E18: 160 | F18: 213 | G18: 12 | H18: 116 | I18: 213 | J18: =COUNTIF(G$10:G18,G18) -> 3 | K18: =COUNTIF(H$10:H18,H18) -> 2 | L18: =COUNTIF(I$10:I18,I18) -> 1 | M18: 1 | N18: 2.5 | O18: 4 | Q18: 0.9 | R18: =PERCENTILE(Clouds[Cloud 1],$Q18) -> 90 | S18: =PERCENTILE(Clouds[Cloud 2],$Q18) -> 191.1 | T18: =PERCENTILE(Clouds[Cloud 3],$Q18) -> 290.2
D19: 29 | E19: 107 | F19: 216 | G19: 13 | H19: 117 | I19: 216 | J19: =COUNTIF(G$10:G19,G19) -> 1 | K19: =COUNTIF(H$10:H19,H19) -> 1 | L19: =COUNTIF(I$10:I19,I19) -> 1 | M19: 2 | N19: 3 | O19: 4 | Q19: 1 | R19: =PERCENTILE(Clouds[Cloud 1],$Q19) -> 99 | S19: =PERCENTILE(Clouds[Cloud 2],$Q19) -> 200 | T19: =PERCENTILE(Clouds[Cloud 3],$Q19) -> 298
D20: 34 | E20: 167 | F20: 216 | G20: 15 | H20: 118 | I20: 216 | J20: =COUNTIF(G$10:G20,G20) -> 1 | K20: =COUNTIF(H$10:H20,H20) -> 1 | L20: =COUNTIF(I$10:I20,I20) -> 2 | M20: 2 | N20: 3 | O20: 3.5
D21: 68 | E21: 153 | F21: 217 | G21: 17 | H21: 118 | I21: 217 | J21: =COUNTIF(G$10:G21,G21) -> 1 | K21: =COUNTIF(H$10:H21,H21) -> 2 | L21: =COUNTIF(I$10:I21,I21) -> 1 | M21: 2 | N21: 2.5 | O21: 4 | Q21: Stacked Bar | T21: Stacked: Cloud 1 | U21: Stacked: Cloud 2 | V21: Stacked: Cloud 3
D22: 62 | E22: 184 | F22: 217 | G22: 18 | H22: 119 | I22: 217 | J22: =COUNTIF(G$10:G22,G22) -> 1 | K22: =COUNTIF(H$10:H22,H22) -> 1 | L22: =COUNTIF(I$10:I22,I22) -> 2 | M22: 2 | N22: 3 | O22: 3.5 | Q22: Base 25th | T22: =R15 -> 20.5 | U22: =S15 -> 123.75 | V22: =T15 -> 223
D23: 64 | E23: 196 | F23: 218 | G23: 18 | H23: 121 | I23: 218 | J23: =COUNTIF(G$10:G23,G23) -> 2 | K23: =COUNTIF(H$10:H23,H23) -> 1 | L23: =COUNTIF(I$10:I23,I23) -> 1 | M23: 1.5 | N23: 3 | O23: 4 | Q23: Bottom 25-50 | T23: =R16-R15 -> 23 | U23: 31.25 | V23: 27
D24: 92 | E24: 102 | F24: 223 | G24: 19 | H24: 123 | I24: 223 | J24: =COUNTIF(G$10:G24,G24) -> 1 | K24: =COUNTIF(H$10:H24,H24) -> 1 | L24: =COUNTIF(I$10:I24,I24) -> 1 | M24: 2 | N24: 3 | O24: 4 | Q24: Top 50-75 | T24: 21.25 | U24: 27 | V24: 22.5
D25: 8 | E25: 118 | F25: 223 | G25: 21 | H25: 124 | I25: 223 | J25: =COUNTIF(G$10:G25,G25) -> 1 | K25: =COUNTIF(H$10:H25,H25) -> 1 | L25: =COUNTIF(I$10:I25,I25) -> 2 | M25: 2 | N25: 3 | O25: 3.5
D26: 60 | E26: 191 | F26: 224 | G26: 27 | H26: 125 | I26: 224 | J26: =COUNTIF(G$10:G26,G26) -> 1 | K26: =COUNTIF(H$10:H26,H26) -> 1 | L26: =COUNTIF(I$10:I26,I26) -> 1 | M26: 2 | N26: 3 | O26: 4 | Q26: x | R26: y
D27: 12 | E27: 144 | F27: 225 | G27: 27 | H27: 126 | I27: 225 | J27: =COUNTIF(G$10:G27,G27) -> 2 | K27: =COUNTIF(H$10:H27,H27) -> 1 | L27: =COUNTIF(I$10:I27,I27) -> 1 | M27: 1.5 | N27: 3 | O27: 4 | Q27: =R16 -> 43.5 | R27: 2.5
D28: 48 | E28: 174 | F28: 225 | G28: 28 | H28: 127 | I28: 225 | J28: =COUNTIF(G$10:G28,G28) -> 1 | K28: =COUNTIF(H$10:H28,H28) -> 1 | L28: =COUNTIF(I$10:I28,I28) -> 2 | M28: 2 | N28: 3 | O28: 3.5 | Q28: =S16 -> 155 | R28: 3.5
D29: 31 | E29: 111 | F29: 226 | G29: 28 | H29: 128 | I29: 226 | J29: =COUNTIF(G$10:G29,G29) -> 2 | K29: =COUNTIF(H$10:H29,H29) -> 1 | L29: =COUNTIF(I$10:I29,I29) -> 1 | M29: 1.5 | N29: 3 | O29: 4 | Q29: =T16 -> 250 | R29: 4.5
D30: 18 | E30: 175 | F30: 226 | G30: 29 | H30: 138 | I30: 226 | J30: =COUNTIF(G$10:G30,G30) -> 1 | K30: =COUNTIF(H$10:H30,H30) -> 1 | L30: =COUNTIF(I$10:I30,I30) -> 2 | M30: 2 | N30: 3 | O30: 3.5
D31: 56 | E31: 116 | F31: 229 | G31: 29 | H31: 143 | I31: 229 | J31: =COUNTIF(G$10:G31,G31) -> 2 | K31: =COUNTIF(H$10:H31,H31) -> 1 | L31: =COUNTIF(I$10:I31,I31) -> 1 | M31: 1.5 | N31: 3 | O31: 4 | Q31: Error Bar Length
D32: 90 | E32: 143 | F32: 230 | G32: 31 | H32: 144 | I32: 230 | J32: =COUNTIF(G$10:G32,G32) -> 1 | K32: =COUNTIF(H$10:H32,H32) -> 1 | L32: =COUNTIF(I$10:I32,I32) -> 1 | M32: 2 | N32: 3 | O32: 4 | Q32: Positive | R32: =-R16+R18 -> 46.5 | S32: =-S16+S18 -> 36.1 | T32: =-T16+T18 -> 40.2
D33: 10 | E33: 116 | F33: 237 | G33: 31 | H33: 146 | I33: 237 | J33: =COUNTIF(G$10:G33,G33) -> 2 | K33: =COUNTIF(H$10:H33,H33) -> 1 | L33: =COUNTIF(I$10:I33,I33) -> 1 | M33: 1.5 | N33: 3 | O33: 4 | Q33: Negative | R33: =R16-R14 -> 31.6 | S33: =S16-S14 -> 42.2 | T33: =T16-T14 -> 39.2
D34: 9 | E34: 168 | F34: 240 | G34: 31 | H34: 147 | I34: 240 | J34: =COUNTIF(G$10:G34,G34) -> 3 | K34: =COUNTIF(H$10:H34,H34) -> 1 | L34: =COUNTIF(I$10:I34,I34) -> 1 | M34: 1 | N34: 3 | O34: 4
D35: 92 | E35: 196 | F35: 240 | G35: 33 | H35: 149 | I35: 240 | J35: =COUNTIF(G$10:G35,G35) -> 1 | K35: =COUNTIF(H$10:H35,H35) -> 1 | L35: =COUNTIF(I$10:I35,I35) -> 2 | M35: 2 | N35: 3 | O35: 3.5
D36: 31 | E36: 105 | F36: 241 | G36: 34 | H36: 149 | I36: 241 | J36: =COUNTIF(G$10:G36,G36) -> 1 | K36: =COUNTIF(H$10:H36,H36) -> 2 | L36: =COUNTIF(I$10:I36,I36) -> 1 | M36: 2 | N36: 2.5 | O36: 4
D37: 13 | E37: 124 | F37: 242 | G37: 38 | H37: 150 | I37: 242 | J37: =COUNTIF(G$10:G37,G37) -> 1 | K37: =COUNTIF(H$10:H37,H37) -> 1 | L37: =COUNTIF(I$10:I37,I37) -> 1 | M37: 2 | N37: 3 | O37: 4
D38: 93 | E38: 150 | F38: 248 | G38: 39 | H38: 153 | I38: 248 | J38: =COUNTIF(G$10:G38,G38) -> 1 | K38: =COUNTIF(H$10:H38,H38) -> 1 | L38: =COUNTIF(I$10:I38,I38) -> 1 | M38: 2 | N38: 3 | O38: 4
D39: 95 | E39: 182 | F39: 250 | G39: 43 | H39: 154 | I39: 250 | J39: =COUNTIF(G$10:G39,G39) -> 1 | K39: =COUNTIF(H$10:H39,H39) -> 1 | L39: =COUNTIF(I$10:I39,I39) -> 1 | M39: 2 | N39: 3 | O39: 4
D40: 11 | E40: 186 | F40: 250 | G40: 44 | H40: 156 | I40: 250 | J40: =COUNTIF(G$10:G40,G40) -> 1 | K40: =COUNTIF(H$10:H40,H40) -> 1 | L40: =COUNTIF(I$10:I40,I40) -> 2 | M40: 2 | N40: 3 | O40: 3.5
D41: 27 | E41: 182 | F41: 251 | G41: 48 | H41: 160 | I41: 251 | J41: =COUNTIF(G$10:G41,G41) -> 1 | K41: =COUNTIF(H$10:H41,H41) -> 1 | L41: =COUNTIF(I$10:I41,I41) -> 1 | M41: 2 | N41: 3 | O41: 4
D42: 31 | E42: 149 | F42: 252 | G42: 48 | H42: 160 | I42: 252 | J42: =COUNTIF(G$10:G42,G42) -> 2 | K42: =COUNTIF(H$10:H42,H42) -> 2 | L42: =COUNTIF(I$10:I42,I42) -> 1 | M42: =IF(J42=1,R$9,M41+R$10) -> 1.5 | N42: =IF(K42=1,S$9,N41+S$10) -> 2.5 | O42: =IF(L42=1,T$9,O41+T$10) -> 4
D43: 67 | E43: 198 | F43: 252 | G43: 50 | H43: 164 | I43: 252 | J43: =COUNTIF(G$10:G43,G43) -> 1 | K43: =COUNTIF(H$10:H43,H43) -> 1 | L43: =COUNTIF(I$10:I43,I43) -> 2 | M43: 2 | N43: 3 | O43: 3.5
D44: 68 | E44: 138 | F44: 253 | G44: 51 | H44: 167 | I44: 253 | J44: =COUNTIF(G$10:G44,G44) -> 1 | K44: =COUNTIF(H$10:H44,H44) -> 1 | L44: =COUNTIF(I$10:I44,I44) -> 1 | M44: 2 | N44: 3 | O44: 4
D45: 19 | E45: 160 | F45: 253 | G45: 52 | H45: 168 | I45: 253 | J45: =COUNTIF(G$10:G45,G45) -> 1 | K45: =COUNTIF(H$10:H45,H45) -> 1 | L45: =COUNTIF(I$10:I45,I45) -> 2 | M45: 2 | N45: 3 | O45: 3.5
D46: 28 | E46: 191 | F46: 254 | G46: 53 | H46: 172 | I46: 254 | J46: =COUNTIF(G$10:G46,G46) -> 1 | K46: =COUNTIF(H$10:H46,H46) -> 1 | L46: =COUNTIF(I$10:I46,I46) -> 1 | M46: 2 | N46: 3 | O46: 4
D47: 29 | E47: 117 | F47: 257 | G47: 53 | H47: 173 | I47: 257 | J47: =COUNTIF(G$10:G47,G47) -> 2 | K47: =COUNTIF(H$10:H47,H47) -> 1 | L47: =COUNTIF(I$10:I47,I47) -> 1 | M47: 1.5 | N47: 3 | O47: 4
D48: 17 | E48: 123 | F48: 257 | G48: 56 | H48: 174 | I48: 257 | J48: =COUNTIF(G$10:G48,G48) -> 1 | K48: =COUNTIF(H$10:H48,H48) -> 1 | L48: =COUNTIF(I$10:I48,I48) -> 2 | M48: 2 | N48: 3 | O48: 3.5
D49: 18 | E49: 172 | F49: 259 | G49: 56 | H49: 175 | I49: 259 | J49: =COUNTIF(G$10:G49,G49) -> 2 | K49: =COUNTIF(H$10:H49,H49) -> 1 | L49: =COUNTIF(I$10:I49,I49) -> 1 | M49: 1.5 | N49: 3 | O49: 4
D50: 44 | E50: 128 | F50: 262 | G50: 60 | H50: 177 | I50: 262 | J50: =COUNTIF(G$10:G50,G50) -> 1 | K50: =COUNTIF(H$10:H50,H50) -> 1 | L50: =COUNTIF(I$10:I50,I50) -> 1 | M50: 2 | N50: 3 | O50: 4
D51: 60 | E51: 191 | F51: 262 | G51: 60 | H51: 179 | I51: 262 | J51: =COUNTIF(G$10:G51,G51) -> 2 | K51: =COUNTIF(H$10:H51,H51) -> 1 | L51: =COUNTIF(I$10:I51,I51) -> 2 | M51: 1.5 | N51: 3 | O51: 3.5
D52: 43 | E52: 125 | F52: 265 | G52: 62 | H52: 181 | I52: 265 | J52: =COUNTIF(G$10:G52,G52) -> 1 | K52: =COUNTIF(H$10:H52,H52) -> 1 | L52: =COUNTIF(I$10:I52,I52) -> 1 | M52: 2 | N52: 3 | O52: 4
D53: 68 | E53: 126 | F53: 265 | G53: 63 | H53: 182 | I53: 265 | J53: =COUNTIF(G$10:G53,G53) -> 1 | K53: =COUNTIF(H$10:H53,H53) -> 1 | L53: =COUNTIF(I$10:I53,I53) -> 2 | M53: 2 | N53: 3 | O53: 3.5
D54: 39 | E54: 121 | F54: 272 | G54: 64 | H54: 182 | I54: 272 | J54: =COUNTIF(G$10:G54,G54) -> 1 | K54: =COUNTIF(H$10:H54,H54) -> 2 | L54: =COUNTIF(I$10:I54,I54) -> 1 | M54: 2 | N54: 2.5 | O54: 4
D55: 15 | E55: 156 | F55: 274 | G55: 67 | H55: 182 | I55: 274 | J55: =COUNTIF(G$10:G55,G55) -> 1 | K55: =COUNTIF(H$10:H55,H55) -> 3 | L55: =COUNTIF(I$10:I55,I55) -> 1 | M55: 2 | N55: 2 | O55: 4
D56: 21 | E56: 192 | F56: 280 | G56: 67 | H56: 184 | I56: 280 | J56: =COUNTIF(G$10:G56,G56) -> 2 | K56: =COUNTIF(H$10:H56,H56) -> 1 | L56: =COUNTIF(I$10:I56,I56) -> 1 | M56: 1.5 | N56: 3 | O56: 4
D57: 8 | E57: 105 | F57: 283 | G57: 68 | H57: 186 | I57: 283 | J57: =COUNTIF(G$10:G57,G57) -> 1 | K57: =COUNTIF(H$10:H57,H57) -> 1 | L57: =COUNTIF(I$10:I57,I57) -> 1 | M57: 2 | N57: 3 | O57: 4
D58: 53 | E58: 200 | F58: 283 | G58: 68 | H58: 189 | I58: 283 | J58: =COUNTIF(G$10:G58,G58) -> 2 | K58: =COUNTIF(H$10:H58,H58) -> 1 | L58: =COUNTIF(I$10:I58,I58) -> 2 | M58: 1.5 | N58: 3 | O58: 3.5
D59: 1 | E59: 179 | F59: 285 | G59: 68 | H59: 190 | I59: 285 | J59: =COUNTIF(G$10:G59,G59) -> 3 | K59: =COUNTIF(H$10:H59,H59) -> 1 | L59: =COUNTIF(I$10:I59,I59) -> 1 | M59: 1 | N59: 3 | O59: 4
D60: 63 | E60: 113 | F60: 290 | G60: 70 | H60: 191 | I60: 290 | J60: =COUNTIF(G$10:G60,G60) -> 1 | K60: =COUNTIF(H$10:H60,H60) -> 1 | L60: =COUNTIF(I$10:I60,I60) -> 1 | M60: 2 | N60: 3 | O60: 4
D61: 73 | E61: 146 | F61: 290 | G61: 73 | H61: 191 | I61: 290 | J61: =COUNTIF(G$10:G61,G61) -> 1 | K61: =COUNTIF(H$10:H61,H61) -> 2 | L61: =COUNTIF(I$10:I61,I61) -> 2 | M61: 2 | N61: 2.5 | O61: 3.5
D62: 78 | E62: 173 | F62: 290 | G62: 78 | H62: 191 | I62: 290 | J62: =COUNTIF(G$10:G62,G62) -> 1 | K62: =COUNTIF(H$10:H62,H62) -> 3 | L62: =COUNTIF(I$10:I62,I62) -> 3 | M62: 2 | N62: 2 | O62: 3
D63: 90 | E63: 189 | F63: 290 | G63: 90 | H63: 191 | I63: 290 | J63: =COUNTIF(G$10:G63,G63) -> 1 | K63: =COUNTIF(H$10:H63,H63) -> 4 | L63: =COUNTIF(I$10:I63,I63) -> 4 | M63: 2 | N63: 1.5 | O63: 2.5
D64: 51 | E64: 154 | F64: 292 | G64: 90 | H64: 192 | I64: 292 | J64: =COUNTIF(G$10:G64,G64) -> 2 | K64: =COUNTIF(H$10:H64,H64) -> 1 | L64: =COUNTIF(I$10:I64,I64) -> 1 | M64: 1.5 | N64: 3 | O64: 4
D65: 27 | E65: 177 | F65: 293 | G65: 92 | H65: 196 | I65: 293 | J65: =COUNTIF(G$10:G65,G65) -> 1 | K65: =COUNTIF(H$10:H65,H65) -> 1 | L65: =COUNTIF(I$10:I65,I65) -> 1 | M65: 2 | N65: 3 | O65: 4
D66: 56 | E66: 106 | F66: 295 | G66: 92 | H66: 196 | I66: 295 | J66: =COUNTIF(G$10:G66,G66) -> 2 | K66: =COUNTIF(H$10:H66,H66) -> 2 | L66: =COUNTIF(I$10:I66,I66) -> 1 | M66: 1.5 | N66: 2.5 | O66: 4
D67: 12 | E67: 190 | F67: 295 | G67: 93 | H67: 197 | I67: 295 | J67: =COUNTIF(G$10:G67,G67) -> 1 | K67: =COUNTIF(H$10:H67,H67) -> 1 | L67: =COUNTIF(I$10:I67,I67) -> 2 | M67: 2 | N67: 3 | O67: 3.5
D68: 53 | E68: 191 | F68: 297 | G68: 95 | H68: 198 | I68: 297 | J68: =COUNTIF(G$10:G68,G68) -> 1 | K68: =COUNTIF(H$10:H68,H68) -> 1 | L68: =COUNTIF(I$10:I68,I68) -> 1 | M68: 2 | N68: 3 | O68: 4
D69: 70 | E69: 119 | F69: 298 | G69: 99 | H69: 200 | I69: 298 | J69: =COUNTIF(G$10:G69,G69) -> 1 | K69: =COUNTIF(H$10:H69,H69) -> 1 | L69: =COUNTIF(I$10:I69,I69) -> 1 | M69: 2 | N69: 3 | O69: 4

Sheet Error Checks
A1: =IF(ISERROR(RIGHT(CELL("filename",A1),LEN(CELL("filename",A1))-FIND("]",CELL("filename",A1)))), "", RIGHT(CELL("filename",A1),LEN(CELL("filename",A1))-FIND("]",CELL("filename",A1)))) -> Error Checks
A2: =Model_Name -> SP Horizontal RainCloud Chart - Complete.xlsm
A3: Navigator
B4: Error Checks: | F4: =Overall_Error_Check -> 0
B6: =MAX($B$5:$B5)+1 -> 1 | C6: Error Checks
C8: Summary of Errors
D10: Assumptions
E12: Example
E17: =C8 -> Summary of Errors | I17: =MIN(1,SUM(I11:I15)) -> 0
